Cogmind - Beta 14 @@@ ROGUE MODE // 2024.11.16 @ 20:03:22 Player: Shimmyarah Result: Self-destructed Performance ------------- Evolutions (1) 500 Regions Visited (2) 400 Robots Destroyed (16) 80 Value Destroyed (204) 204 Prototype IDs (0) 0 Alien Tech Used (0) 0 Bonus (0) 0 TOTAL SCORE: 1184 Bonus ------- None Cogmind --------- Core Integrity 400/400 Matter 300/300 Energy 250/250 System Corruption 0% Temperature Cool (0) Movement Rolling (110) Ox2 Location -9/Materials Parts ------- > --- POWER (1) -------- Ion Engine > --- PROPULSION (2) --- Wheel Wheel (fused) > --- UTILITY (4) ------ High-capacity Storage Unit Seismic Detector > --- WEAPON (2) ------- Beam Cannon Beam Cannon > --- INVENTORY (20) --- Ion Engine Light Treads Light Treads Light Treads Flight Unit Flight Unit Flight Unit Heat Sink Heat Sink High-capacity Matter Pod (200) Visual Processing Unit Improved Terrain Scanner Targeting Computer Core Shielding Power Shielding Propulsion Shielding Utility Shielding Medium Laser Medium Laser Mining Laser Peak State ------------ > --- POWER ------------ Ion Engine > --- PROPULSION ------- Wheel Wheel > --- UTILITY ---------- High-capacity Storage Unit Utility Shielding > --- WEAPON ----------- Medium Laser Beam Cannon > --- INVENTORY -------- Ion Engine Light Treads Light Treads Wheel Compact Wheel Flight Unit Flight Unit Flight Unit Heat Sink Large Matter Pod High-capacity Matter Pod Improved Terrain Scanner Seismic Detector Targeting Computer Medium Laser Small Laser Light Assault Rifle Mining Laser [Rating: 9] Favorites ----------- Power Ion Engine Engine Ion Engine Propulsion Wheel Leg Aluminum Leg Wheel Wheel Utility High-capacity Storage Unit Device Seismic Detector Storage High-capacity Storage Unit Protection Utility Shielding Weapon Beam Cannon Energy Gun Medium Laser Energy Cannon Beam Cannon Special Weapon Mining Laser Build | -11 -10 -9 ------- Run | Yrd Mat Mat Slots Evolved 2 | . . 2 Power . | . . . Propulsion . | . . . Utility 2 | . . 2 Weapon . | . . . Parts Attached 11 | 3 8 . Power . | . . . Engine . | . . . Core . | . . . Reactor . | . . . Propulsion 3 | 2 1 . Treads . | . . . Leg . | . . . Wheel 3 | 2 1 . Hover . | . . . Flight . | . . . Utility 4 | 1 3 . Device 2 | 1 1 . Storage 1 | . 1 . Processor . | . . . Hackware . | . . . Protection 1 | . 1 . Artifact . | . . . Weapon 4 | . 4 . Energy Gun . | . . . Energy Cannon 3 | . 3 . Ballistic Gun . | . . . Ballistic Cannon . | . . . Launcher . | . . . Special Weapon 1 | . 1 . Impact Weapon . | . . . Slashing Weapon . | . . . Piercing Weapon . | . . . Special Melee Weapon . | . . . Unidentified Prototypes . | . . . Parts Lost . | . . . Power . | . . . Propulsion . | . . . Utility . | . . . Weapon . | . . . Highest Loss Streak . | . . . To Critical Strikes . | . . . Average Slot Usage (%) 100 | . 100 . Engine 14 | . 14 . Wheel 28 | . 28 . Device 12 | . 12 . Storage 14 | . 14 . Protection 1 | . 1 . Energy Gun 8 | . 8 . Energy Cannon 18 | . 18 . Peak Build Rating 9 | 8 9 . Average Rating 8 | 6 8 . On Entrance 7 | 6 8 9 Naked Turns . | . . . Heaviest Build 52 | 15 52 . Greatest Support 20 | 20 20 . Greatest Overweight (x) 2 | . 2 . Average Overweight (x) 1 | . 1 . Largest Inventory Capacity 20 | 8 20 . Average Capacity 18 | 8 19 . Most Carried 20 | 8 20 . Average Carried 16 | 7 17 . Final Capacity 20 | 8 20 20 Final Carried 20 | 8 20 20 Class Distribution -------------------- 95% | Mutant 4% | Scavenger-Mutant Dominant Class ---------------- Mutant | -10/Materials Mutant | -9/Materials Resources | -11 -10 -9 ----------- Run | Yrd Mat Mat Matter Collected 648 | 230 418 . Remotely . | . . . Salvage Created 489 | 198 291 . Parts 38 | 19 19 . Haulers Intercepted 1 | . 1 . Recyclers Shooed 1 | . 1 . Parts Field Recycled . | . . . Retrieved Matter . | . . . Parts Self-Destructed . | . . . Prevented . | . . . Kills | -11 -10 -9 ------- Run | Yrd Mat Mat Combat Hostiles Destroyed 4 | . 4 . Cannons 4 | . 4 . Classes Destroyed 6 | 3 3 . Worker 3 | 2 1 . Tunneler 5 | 5 . . Hauler 1 | . 1 . Recycler 2 | 1 1 . Watcher 1 | . 1 . Grunt 4 | . 4 . Best Kill Streak 3 | 3 2 . Combat Bots Only 1 | . 1 . Max Kills in Single Turn 2 | 2 1 . Gunslinging . | . . . Exploded . | . . . Melee . | . . . Uniques/NPCs Destroyed . | . . . Combat | -11 -10 -9 -------- Run | Yrd Mat Mat Hostile Shots Fired 10 | . 10 . Missed 1 | . 1 . Damage Taken 218 | . 218 . Core 31 | . 31 . Absorbed by Shields . | . . . Core Remaining (%) 93 | 100 87 . Volleys Fired 44 | 21 23 . Largest 2 | 2 2 . Hottest 120 | 100 120 . Shots Fired 85 | 42 43 . Gun 55 | 42 13 . Cannon 26 | . 26 . Launcher . | . . . Special 4 | . 4 . Kinetic . | . . . Thermal 85 | 42 43 . Explosive . | . . . Electromagnetic . | . . . Robot Hit Streak 6 | 6 4 . Robot Miss Streak 3 | 2 3 . Penetration Max . | . . . Secondary Targets . | . . . Shots Hit Robots 44 | 22 22 . Core Hits 19 | 9 10 . Critical Kills . | . . . Critical Parts Destroyed . | . . . Critical Strikes 2 | 2 . . Burn 2 | 2 . . Melee Attacks . | . . . Impact . | . . . Slashing . | . . . Piercing . | . . . Sneak Attacks . | . . . Combat Hostiles . | . . . Follow-up Attacks . | . . . Damage Inflicted 779 | 311 468 . Guns 423 | 311 112 . Cannons 248 | . 248 . Explosions . | . . . Melee . | . . . Ramming 108 | . 108 . Kinetic . | . . . Thermal 671 | 311 360 . Explosive . | . . . Electromagnetic . | . . . Impact . | . . . Slashing . | . . . Piercing . | . . . Highest Corruption 3 | . 3 . Average Corruption 2 | . 2 . Corruption Purged . | . . . Corruption Blocked . | . . . Effects 8 | . 8 . Message Errors 2 | . 2 . Heat Flow Errors 2 | . 2 . Parts Fused 1 | . 1 . Data Loss (minor) 1 | . 1 . Misfires 1 | . 1 . Alerts 1 | . 1 . Overload Shots . | . . . Overflow Damage . | . . . Projectiles . | . . . Explosions . | . . . Melee . | . . . Knockbacks 2 | . 2 . Impact 2 | . 2 . Kinetic . | . . . Secondary . | . . . Self-Inflicted Damage 52 | . 52 . Shots . | . . . Rammed 6 | . 6 . Targets Rammed 6 | . 6 . Kicked . | . . . Crushed . | . . . Highest Temperature 312 | 312 238 . Average Temperature 89 | 121 66 . Received Heat Transfer 60 | . 60 . Effects 3 | 3 . . Interference 3 | 3 . . Siege Activations . | . . . Robots Corrupted . | . . . Combat Hostiles . | . . . Parts Fried . | . . . Impact Corruptions . | . . . Robots Melted . | . . . Combat Hostiles . | . . . Parts Melted 5 | 2 3 . Heat Transferred 1924 | 1073 851 . Parts Sabotaged . | . . . Parts Stolen . | . . . Parts Stripped . | . . . Power Chain Reactions . | . . . Alert | -11 -10 -9 ------- Run | Yrd Mat Mat Peak Influence 105 | 40 105 . Initial 26 | . 26 8 Average 24 | 21 24 . Maximum Alert Level . | . . . Low Security (%) 100 | 100 100 . Level 1 . | . . . Level 2 . | . . . Level 3 . | . . . Level 4 . | . . . Level 5 . | . . . High Security . | . . . Max Security . | . . . Squads Dispatched 1 | . 1 . Investigation 1 | . 1 . Extermination . | . . . Reinforcement . | . . . Assault . | . . . Garrison . | . . . Intercept . | . . . Searches Triggered . | . . . Construction Impeded . | . . . Haulers Reinforced . | . . . Active Scanning Responses . | . . . Cargo Convoy Interrupts . | . . . Stealth | -11 -10 -9 --------- Run | Yrd Mat Mat Distress Signals 2 | . 2 . Communications Jammed . | . . . Distress Signals . | . . . Times Spotted 10 | . 10 . Peak Tracking Total 2 | . 2 . Tactical Retreats . | . . . Traps | -11 -10 -9 ------- Run | Yrd Mat Mat Traps Triggered 2 | . 2 . Indirectly . | . . . Trap Hack Attempts . | . . . Triggered . | . . . Disarmed . | . . . Reprogrammed . | . . . Reused . | . . . Traps Extracted . | . . . Installed . | . . . Triggered . | . . . Machines | -11 -10 -9 ---------- Run | Yrd Mat Mat Machines Disabled . | . . . Max in Single Turn . | . . . Machines Repaired . | . . . Machines Dismantled . | . . . Machines Sabotaged . | . . . Overloaded Fab Kills . | . . . Hacking | -11 -10 -9 --------- Run | Yrd Mat Mat Machines Accessed 9 | . 9 . Terminals 7 | . 7 . Fabricators . | . . . Repair Stations . | . . . Recycling Units 2 | . 2 . Scanalyzers . | . . . Garrison Access . | . . . Total Hacks 24 | . 24 . Successful 15 | . 15 . Failed 9 | . 9 . Catastrophic 2 | . 2 . Database Lockouts . | . . . Manual 19 | . 19 . Terminals 22 | . 22 . Fabricators . | . . . Repair Stations . | . . . Recycling Units 2 | . 2 . Scanalyzers . | . . . Garrison Access . | . . . Terminal Hacks 4 | . 4 . Robot Analysis 2 | . 2 . Terminal Index 1 | . 1 . Unreport Threat 1 | . 1 . Fabricator Hacks . | . . . Repair Station Hacks . | . . . Recycling Unit Hacks . | . . . Scanalyzer . | . . . Garrison Access Hacks . | . . . Unauthorized Hacks 10 | . 10 . Terminals 9 | . 9 . Track 1 | . 1 . Botnet 3 | . 3 . Operators 1 | . 1 . Skim 4 | . 4 . Fabricators . | . . . Repair Stations . | . . . Recycling Units 1 | . 1 . Tunnel 1 | . 1 . Scanalyzers . | . . . Garrison Access . | . . . Data Cores Recovered . | . . . Used . | . . . Hacking Detections 8 | . 8 . Full Trace Events . | . . . Feedback Events . | . . . Feedback Blocked . | . . . Robot Schematics Acquired . | . . . Robots Built . | . . . Authchips . | . . . Time . | . . . Total Robot Build Rating . | . . . Part Schematics Acquired . | . . . Parts Built . | . . . Authchips . | . . . Time . | . . . Total Part Build Rating . | . . . Parts Repaired . | . . . Time . | . . . Parts Recycled . | . . . Recycled Matter . | . . . Retrieved Matter . | . . . Retrieved Components . | . . . Parts Scanalyzed . | . . . Part Schematics Acquired . | . . . Parts Damaged . | . . . Bothacking | -11 -10 -9 ------------ Run | Yrd Mat Mat Used RIF Installer . | . . . Robots Hacked . | . . . Non-combat . | . . . Combat . | . . . Robot Hacks Applied . | . . . Relay Couplers Released . | . . . Fabnet Peak Effective % . | . . . Robots Rewired . | . . . Allies Hacked . | . . . Hacks Repelled . | . . . Allies | -11 -10 -9 -------- Run | Yrd Mat Mat Total Allies . | . . . Largest Group . | . . . Highest-Rated Group . | . . . Highest-Rated Ally . | . . . Total Orders . | . . . Ally Attacks . | . . . Total Damage . | . . . Kills . | . . . Allies Corrupted . | . . . Allies Melted . | . . . Intel | -11 -10 -9 ------- Run | Yrd Mat Mat Robot Analysis Total 2 | . 2 . Derelict Logs Recovered . | . . . Drone Launches . | . . . Drone Recoveries . | . . . Exploration | -11 -10 -9 ------------- Run | Yrd Mat Mat Turns Passed 1939 | 153 1786 . Spaces Moved 1435 | 86 1349 . Core . | . . . Treads . | . . . Legs 5 | 5 . . Wheels 1430 | 81 1349 . Hover . | . . . Flight . | . . . Fastest Speed 80 | 80 80 . Average Speed 107 | 82 109 . Slowest Speed 120 | 120 110 . Overloaded Moves . | . . . Propulsion Burnouts . | . . . Robots Hopped . | . . . Cave-ins Triggered . | . . . Exploration Rate (%) 33 | 3 97 1 Regions Visited 2 Branch Regions . Pre-discovered Areas 1 | . 1 . Known Exits Taken . | . . . Unknown Exits Taken 2 | 1 1 . Scrap Searched . | . . . Spaces Dug 3 | . 3 . Terrain Destroyed 4 | . 4 . Melee . | . . . Projectile 4 | . 4 . AOE . | . . . Terrain Rammed . | . . . Walls Destroyed . | . . . Machines Disabled . | . . . Actions | -11 -10 -9 --------- Run | Yrd Mat Mat Total 1737 | 127 1610 . Wait 213 | 11 202 . Move 1433 | 85 1348 . Hop . | . . . Pick Up 22 | 5 17 . Fast Attach . | . . . Attach 3 | 3 . . Detach . | . . . Swap 8 | . 8 . Drop 8 | 2 6 . Fire 44 | 21 23 . Melee . | . . . Ram 6 | . 6 . Kick . | . . . Crush . | . . . Escape Stasis . | . . . Rewire . | . . . Trap . | . . . Miscellaneous . | . . . Route ------- -11/Scrapyard -10/Materials (discovered 5 exits: [*Mat x3] / [*Min x2]) -9/Materials History --------- Turn | Location | Event 14 | -11/Scrapyard | Discovered new exit (range 3) 154 | -11/Scrapyard | Entered Materials 255 | -10/Materials | Discovered new exit (range 11) 316 | -10/Materials | Build established: Mutant 599 | -10/Materials | Discovered new exit (range 13) 738 | -10/Materials | Discovered new exit (range 16) 942 | -10/Materials | Discovered new exit (range 12) 1278 | -10/Materials | Discovered new exit (range 4) 1940 | -10/Materials | Entered another Materials area 1940 | -9/Materials | Evolved 2 slots: Utility x2 1940 | -9/Materials | Self-destructed Last Messages --------------- 01626_ NFT8VQ1LC0%A|ZRJ5Q9%|KOLX>CK|TIDUSP2ZN 01756_ System corrupted: Heat flow error (+190). 01829_ Slammed into T-07 Excavator. 01829_ T-07 Excavator knocked back. 01839_ System corrupted: FCS attempts to trigger Beam Cannon. 01839_ System corrupted: Beam Cannon misfires. 01839_ K-01 Serf destroyed. 01937_ Triggered EMP Trap. 01937_ A bubble of electromagnetic force engulfs the area. 01937_ EMP Trap short circuited. 01937_ A bubble of electromagnetic force engulfs the area. 01937_ EMP Trap short circuited. 01937_ A bubble of electromagnetic force engulfs the area. PARAMETERS=UTILITY+2 LOCATION=UNKNOWN GOAL=ESCAPE Map ----- +----------------------------------------------------+ | ??????????????????????????????? | | ??????????????????????????????? | | ??????????????????????????????? | | ??????????????????????????????? | | ??????????????????????????????? | | ??????????????????????????????? | | ??????????????????????????????? | | ??????????????????????????????? | | ??????????????????????????????? | | ??????????????????????????????? | | ????? ??????????????????????? | | ????? ??????????????????????? | | ????? ??????????????????????? | | ????# #?????????????????????? | | ????# ?????????????????????? | | ????# #?????????????????????? | | ????# #?????????????????????? | | ????# #?????????????????????? | | ????# #?????????????????????? | | ????# #?????????????????????? | | ????# #?????????????????????? | | ????# #?????????????????????? | | ????# #?????????????????????? | | ????# #?????????????????????? | | ????# #?????????????????????? | | ????# @ #?????????????????????? | | ????# #?????????????????????? | | ????#####?????????????????????? | | ??????????????????????????????? | | ??????????????????????????????? | | ??????????????????????????????? | | ??????????????????????????????? | | ??????????????????????????????? | | ??????????????????????????????? | | ??????????????????????????????? | | ??????????????????????????????? | | ??????????????????????????????? | | ??????????????????????????????? | | | | | | | | | | | | | | | | | | | | | | | | | +----------------------------------------------------+ Best States ------------- Heat Dissipation 25 Energy Generation 10 Energy Capacity 250 Matter Stores 300 Matter Capacity 300 Sight Range 16 Terrain Scan Density 10 Utility Shielding 33 Evasion (%) 44 Item Schematics ----------------- None Robot Schematics ------------------ None Fabricated ------------ Nothing Alien Tech Used ----------------- None Achievements -------------- None Challenges ------------ None Game ------ Seed DeliveryGhostMatter Manual? 0 Play Time 00:13:46 Cumulative 48.5 hours Start 2024.11.16 @ 19:49:35 End 2024.11.16 @ 20:03:22 Sessions 1 Manual Loads 0 Difficulty Rogue Special Mode None Game No. 89 Rogue 89 Adventurer 0 Explorer 0 Win Type - Total 0 Types 0/0/0/0/0/0/0/0/0 Lore% 26 Gallery% 30 Achievement% 26 Wizard Run 0 Options --------- Layout 1 ASCII 0 Keyboard 0 Movement Arrows Keybinds 0 Fullscreen 1 Font 32/SmallcapsGlow Map View 55x47 Zoom Use 9% Tactical HUD 1 Map Filters NONE Filters NONE Steam 1 RUN: 0a518116-54bb-4f77-9562-d5d90ce6bcdc